[Event "Titled Tuesday Blitz September 28 2021"]
[White "Topalov, Aleksandar"]
[Black "Shkapenko, Pavel"]
[WhiteFideId "925659"]
[BlackFideId "4151933"]
[WhiteElo "2179"]
[BlackElo "2386"]
[Result "0-1"]
[Round "01"]
[TimeControl "180+1"]
[Date "2021.09.28"]
[WhiteClock "0:00:15"]
[BlackClock "0:00:28"]

1. b3 {[%clk 0:03:00]}  d5 {[%clk 0:02:53]} 2. Bb2 {[%clk 0:02:59]}  c6 {[%clk 0:02:53]} 3. Nf3 {[%clk 0:02:59]}  Bg4 {[%clk 0:02:52]} 4. g3 {[%clk 0:02:59]}  Nd7 {[%clk 0:02:52]} 5. Bg2 {[%clk 0:02:59]}  Ngf6 {[%clk 0:02:52]} 6. O-O {[%clk 0:02:59]}  e6 {[%clk 0:02:52]} 7. d4 {[%clk 0:02:59]}  Be7 {[%clk 0:02:52]} 8. Nbd2 {[%clk 0:02:59]}  O-O {[%clk 0:02:52]} 9. c4 {[%clk 0:03:00]}  a5 {[%clk 0:02:51]} 10. a3 {[%clk 0:02:59]}  h6 {[%clk 0:02:51]} 11. h3 {[%clk 0:02:58]}  Bf5 {[%clk 0:02:51]} 12. Rc1 {[%clk 0:02:56]}  Ne4 {[%clk 0:02:45]} 13. Nxe4 {[%clk 0:02:49]}  Bxe4 {[%clk 0:02:45]} 14. Nd2 {[%clk 0:02:41]}  Bxg2 {[%clk 0:02:44]} 15. Kxg2 {[%clk 0:02:41]}  Nf6 {[%clk 0:02:27]} 16. Qc2 {[%clk 0:02:39]}  Re8 {[%clk 0:02:16]} 17. e4 {[%clk 0:02:36]}  Nxe4 {[%clk 0:02:16]} 18. Nxe4 {[%clk 0:02:36]}  dxe4 {[%clk 0:02:16]} 19. Qxe4 {[%clk 0:02:37]}  Bf6 {[%clk 0:02:17]} 20. Rfd1 {[%clk 0:02:34]}  Qb6 {[%clk 0:02:15]} 21. Qf3 {[%clk 0:02:25]}  Rad8 {[%clk 0:02:14]} 22. Qe3 {[%clk 0:02:15]}  Rd7 {[%clk 0:01:25]} 23. Rc2 {[%clk 0:02:15]}  Red8 {[%clk 0:01:24]} 24. Rcd2 {[%clk 0:02:15]}  Bg5 {[%clk 0:01:23]} 25. f4 {[%clk 0:02:14]}  Bf6 {[%clk 0:01:24]} 26. h4 {[%clk 0:02:08]}  Qa6 {[%clk 0:01:22]} 27. Kh2 {[%clk 0:01:57]}  a4 {[%clk 0:01:17]} 28. Qc3 {[%clk 0:01:29]}  c5 {[%clk 0:01:11]} 29. Qf3 {[%clk 0:01:13]}  axb3 {[%clk 0:01:06]} 30. Qxb3 {[%clk 0:01:12]}  Bxd4 {[%clk 0:00:53]} 31. Kh3 {[%clk 0:01:00]}  e5 {[%clk 0:00:47]} 32. fxe5 {[%clk 0:00:51]}  Qe6+ {[%clk 0:00:47]} 33. Kg2 {[%clk 0:00:51]}  Qxe5 {[%clk 0:00:47]} 34. Qf3 {[%clk 0:00:45]}  Qe6 {[%clk 0:00:42]} 35. Bxd4 {[%clk 0:00:41]}  cxd4 {[%clk 0:00:43]} 36. Qb3 {[%clk 0:00:34]}  d3 {[%clk 0:00:38]} 37. Kf2 {[%clk 0:00:27]}  Qf5+ {[%clk 0:00:32]} 38. Kg2 {[%clk 0:00:27]}  Qe4+ {[%clk 0:00:32]} 39. Kf2 {[%clk 0:00:27]}  Rd6 {[%clk 0:00:32]} 40. Kg1 {[%clk 0:00:20]}  Qe3+ {[%clk 0:00:31]} 41. Kg2 {[%clk 0:00:19]}  Rg6 {[%clk 0:00:31]} 42. Rxd3 {[%clk 0:00:16]}  Rxg3+ {[%clk 0:00:31]} 43. Kh2 {[%clk 0:00:16]}  Qf2+ {[%clk 0:00:28]} 44. Kh1 {[%clk 0:00:15]}  Qg2# {[%clk 0:00:28]} 0-1


[Site "https://www.chess.com"]

[Event "Titled Tuesday Blitz September 28 2021"]
[White "Tristan, Leonardo"]
[Black "Okike, David"]
[WhiteFideId "113816"]
[BlackFideId "8500134"]
[WhiteElo "2404"]
[BlackElo "2232"]
[Result "1-0"]
[Round "01"]
[TimeControl "180+1"]
[Date "2021.09.28"]
[WhiteClock "0:01:17"]
[BlackClock "0:02:14"]

1. d4 {[%clk 0:03:00]}  Nf6 {[%clk 0:02:58]} 2. Nf3 {[%clk 0:03:01]}  e6 {[%clk 0:02:57]} 3. Bf4 {[%clk 0:03:01]}  c5 {[%clk 0:02:57]} 4. c3 {[%clk 0:03:01]}  d5 {[%clk 0:02:56]} 5. e3 {[%clk 0:02:59]}  Bd6 {[%clk 0:02:56]} 6. Bb5+ {[%clk 0:02:59]}  Nc6 {[%clk 0:02:53]} 7. Bg3 {[%clk 0:02:59]}  Qc7 {[%clk 0:02:53]} 8. dxc5 {[%clk 0:02:58]}  Bxg3 {[%clk 0:02:51]} 9. hxg3 {[%clk 0:02:59]}  Bd7 {[%clk 0:02:42]} 10. Nbd2 {[%clk 0:02:55]}  Qa5 {[%clk 0:02:37]} 11. a4 {[%clk 0:02:51]}  a6 {[%clk 0:02:36]} 12. b4 {[%clk 0:02:51]}  Qc7 {[%clk 0:02:36]} 13. Bd3 {[%clk 0:02:33]}  Ne5 {[%clk 0:02:35]} 14. Nxe5 {[%clk 0:02:32]}  Qxe5 {[%clk 0:02:35]} 15. Qc2 {[%clk 0:02:30]}  a5 {[%clk 0:02:35]} 16. b5 {[%clk 0:02:26]}  Qc7 {[%clk 0:02:33]} 17. Nb3 {[%clk 0:02:25]}  h6 {[%clk 0:02:33]} 18. c4 {[%clk 0:02:20]}  e5 {[%clk 0:02:32]} 19. O-O {[%clk 0:02:12]}  O-O {[%clk 0:02:31]} 20. Rfd1 {[%clk 0:02:04]}  e4 {[%clk 0:02:31]} 21. Be2 {[%clk 0:02:02]}  Be6 {[%clk 0:02:29]} 22. Rac1 {[%clk 0:01:53]}  Rac8 {[%clk 0:02:29]} 23. Qc3 {[%clk 0:01:51]}  b6 {[%clk 0:02:21]} 24. cxb6 {[%clk 0:01:47]}  Qxb6 {[%clk 0:02:21]} 25. c5 {[%clk 0:01:34]}  Qa7 {[%clk 0:02:17]} 26. b6 {[%clk 0:01:27]}  Qa8 {[%clk 0:02:14]} 27. Nxa5 {[%clk 0:01:17]} 1-0


[Site "https://www.chess.com"]

[Event "Titled Tuesday Blitz September 28 2021"]
[White "Tsydypov, Zhamsaran"]
[Black "Pastar, Slaven"]
[WhiteFideId "4108566"]
[BlackFideId "14402718"]
[WhiteElo "2649"]
[BlackElo "2150"]
[Result "1/2-1/2"]
[Round "01"]
[TimeControl "180+1"]
[Date "2021.09.28"]
[WhiteClock "0:00:29"]
[BlackClock "0:00:05"]

1. e4 {[%clk 0:03:00]}  b6 {[%clk 0:02:58]} 2. d4 {[%clk 0:03:00]}  Bb7 {[%clk 0:02:58]} 3. Bd3 {[%clk 0:03:00]}  Nf6 {[%clk 0:02:58]} 4. Qe2 {[%clk 0:03:00]}  e6 {[%clk 0:02:59]} 5. Nf3 {[%clk 0:02:59]}  d5 {[%clk 0:02:59]} 6. e5 {[%clk 0:02:59]}  Ne4 {[%clk 0:03:00]} 7. O-O {[%clk 0:02:59]}  c5 {[%clk 0:02:56]} 8. c4 {[%clk 0:02:57]}  Be7 {[%clk 0:02:48]} 9. cxd5 {[%clk 0:02:56]}  exd5 {[%clk 0:02:45]} 10. Nc3 {[%clk 0:02:56]}  Nxc3 {[%clk 0:02:43]} 11. bxc3 {[%clk 0:02:57]}  O-O {[%clk 0:02:37]} 12. h4 {[%clk 0:02:51]}  h6 {[%clk 0:02:36]} 13. e6 {[%clk 0:02:49]}  Nc6 {[%clk 0:02:24]} 14. exf7+ {[%clk 0:02:49]}  Rxf7 {[%clk 0:02:25]} 15. Bg6 {[%clk 0:02:50]}  Rf6 {[%clk 0:02:21]} 16. h5 {[%clk 0:02:50]}  Bd6 {[%clk 0:02:13]} 17. Rb1 {[%clk 0:02:41]}  Qe7 {[%clk 0:02:08]} 18. Qxe7 {[%clk 0:02:31]}  Nxe7 {[%clk 0:02:04]} 19. Bd3 {[%clk 0:02:31]}  c4 {[%clk 0:02:00]} 20. Bc2 {[%clk 0:02:31]}  Raf8 {[%clk 0:01:50]} 21. Ne5 {[%clk 0:02:29]}  Bc8 {[%clk 0:01:35]} 22. f4 {[%clk 0:02:21]}  Nf5 {[%clk 0:01:08]} 23. g4 {[%clk 0:02:19]}  Ng3 {[%clk 0:01:02]} 24. Rf2 {[%clk 0:02:18]}  Re8 {[%clk 0:00:47]} 25. Bd2 {[%clk 0:02:07]}  Rff8 {[%clk 0:00:34]} 26. Kg2 {[%clk 0:01:58]}  Ne4 {[%clk 0:00:23]} 27. Bxe4 {[%clk 0:01:58]}  dxe4 {[%clk 0:00:24]} 28. Nxc4 {[%clk 0:01:57]}  Bc7 {[%clk 0:00:17]} 29. f5 {[%clk 0:01:56]}  Ba6 {[%clk 0:00:15]} 30. Ne3 {[%clk 0:01:54]}  Bd3 {[%clk 0:00:14]} 31. Re1 {[%clk 0:01:53]}  Bd6 {[%clk 0:00:13]} 32. Nd5 {[%clk 0:01:51]}  Rc8 {[%clk 0:00:11]} 33. Bf4 {[%clk 0:01:46]}  Bxf4 {[%clk 0:00:10]} 34. Rxf4 {[%clk 0:01:46]}  Kf7 {[%clk 0:00:10]} 35. Rc1 {[%clk 0:01:40]}  Rfd8 {[%clk 0:00:10]} 36. Ne3 {[%clk 0:01:39]}  Rxd4 {[%clk 0:00:10]} 37. Rf2 {[%clk 0:01:36]}  Rd7 {[%clk 0:00:09]} 38. Kg3 {[%clk 0:01:36]}  Rdc7 {[%clk 0:00:09]} 39. c4 {[%clk 0:01:35]}  Bxc4 {[%clk 0:00:06]} 40. Rfc2 {[%clk 0:01:35]}  b5 {[%clk 0:00:07]} 41. Kf4 {[%clk 0:01:35]}  Re7 {[%clk 0:00:07]} 42. Rd2 {[%clk 0:01:33]}  a5 {[%clk 0:00:06]} 43. a4 {[%clk 0:01:33]}  Rec7 {[%clk 0:00:05]} 44. axb5 {[%clk 0:01:32]}  Bxb5 {[%clk 0:00:05]} 45. Ra1 {[%clk 0:01:31]}  a4 {[%clk 0:00:06]} 46. Rd5 {[%clk 0:01:29]}  Be8 {[%clk 0:00:05]} 47. Rd4 {[%clk 0:01:28]}  Re7 {[%clk 0:00:05]} 48. Nc4 {[%clk 0:01:28]}  Kf8 {[%clk 0:00:05]} 49. Ne5 {[%clk 0:01:28]}  Ra8 {[%clk 0:00:04]} 50. Ra3 {[%clk 0:01:27]}  Rb7 {[%clk 0:00:03]} 51. Rxe4 {[%clk 0:01:25]}  Rb3 {[%clk 0:00:03]} 52. Re3 {[%clk 0:00:58]}  Rxe3 {[%clk 0:00:02]} 53. Kxe3 {[%clk 0:00:58]}  Rb8 {[%clk 0:00:03]} 54. Kd4 {[%clk 0:00:58]}  Rb3 {[%clk 0:00:04]} 55. Rxb3 {[%clk 0:00:57]}  axb3 {[%clk 0:00:04]} 56. Kc3 {[%clk 0:00:58]}  Bf7 {[%clk 0:00:05]} 57. Nc6 {[%clk 0:00:51]}  Bg8 {[%clk 0:00:05]} 58. Kb2 {[%clk 0:00:46]}  Kf7 {[%clk 0:00:04]} 59. Kxb3 {[%clk 0:00:42]}  Kf6+ {[%clk 0:00:05]} 60. Kc3 {[%clk 0:00:42]}  Kg5 {[%clk 0:00:06]} 61. Ne5 {[%clk 0:00:43]}  Kf4 {[%clk 0:00:06]} 62. Kd4 {[%clk 0:00:43]}  Ba2 {[%clk 0:00:05]} 63. Nd7 {[%clk 0:00:30]}  Kxg4 {[%clk 0:00:06]} 64. f6 {[%clk 0:00:31]}  gxf6 {[%clk 0:00:05]} 65. Nxf6+ {[%clk 0:00:31]}  Kg5 {[%clk 0:00:05]} 66. Ke5 {[%clk 0:00:30]}  Bb3 {[%clk 0:00:04]} 67. Ne4+ {[%clk 0:00:28]}  Kxh5 {[%clk 0:00:04]} 68. Kf4 {[%clk 0:00:28]}  Kg6 {[%clk 0:00:04]} 69. Ng3 {[%clk 0:00:28]}  h5 {[%clk 0:00:05]} 70. Nxh5 {[%clk 0:00:29]} 1/2-1/2


[Site "https://www.chess.com"]

[Event "Titled Tuesday Blitz September 28 2021"]
[White "Visakh N R"]
[Black "Damjanovic, Vladimir"]
[WhiteFideId "25012223"]
[BlackFideId "903795"]
[WhiteElo "2454"]
[BlackElo "2374"]
[Result "1-0"]
[Round "01"]
[TimeControl "180+1"]
[Date "2021.09.28"]
[WhiteClock "0:00:27"]
[BlackClock "0:00:01"]

1. d4 {[%clk 0:03:00]}  Nf6 {[%clk 0:02:57]} 2. c4 {[%clk 0:03:00]}  e6 {[%clk 0:02:51]} 3. Nc3 {[%clk 0:03:00]}  d5 {[%clk 0:02:51]} 4. Nf3 {[%clk 0:02:58]}  c6 {[%clk 0:02:45]} 5. Bg5 {[%clk 0:02:51]}  h6 {[%clk 0:02:43]} 6. Bxf6 {[%clk 0:02:50]}  Qxf6 {[%clk 0:02:44]} 7. e3 {[%clk 0:02:47]}  Nd7 {[%clk 0:02:44]} 8. Be2 {[%clk 0:02:45]}  Bd6 {[%clk 0:02:26]} 9. O-O {[%clk 0:02:44]}  Qe7 {[%clk 0:02:24]} 10. e4 {[%clk 0:02:42]}  dxe4 {[%clk 0:02:24]} 11. Nxe4 {[%clk 0:02:42]}  Bc7 {[%clk 0:02:23]} 12. Bd3 {[%clk 0:02:40]}  O-O {[%clk 0:02:18]} 13. Re1 {[%clk 0:02:40]}  Nf6 {[%clk 0:02:12]} 14. Nxf6+ {[%clk 0:02:27]}  Qxf6 {[%clk 0:02:13]} 15. Qe2 {[%clk 0:02:27]}  Rd8 {[%clk 0:02:03]} 16. Rad1 {[%clk 0:02:26]}  Bd7 {[%clk 0:01:54]} 17. Qe4 {[%clk 0:02:11]}  g6 {[%clk 0:01:54]} 18. Qe3 {[%clk 0:01:55]}  Qf4 {[%clk 0:01:51]} 19. Qe2 {[%clk 0:01:49]}  c5 {[%clk 0:01:44]} 20. Be4 {[%clk 0:01:40]}  cxd4 {[%clk 0:01:37]} 21. Bxb7 {[%clk 0:01:38]}  Rab8 {[%clk 0:01:25]} 22. Rxd4 {[%clk 0:01:36]}  Qf6 {[%clk 0:01:23]} 23. Be4 {[%clk 0:01:23]}  Bb6 {[%clk 0:01:09]} 24. Rd3 {[%clk 0:01:21]}  Ba5 {[%clk 0:01:04]} 25. Rb1 {[%clk 0:01:21]}  Qg7 {[%clk 0:00:46]} 26. b3 {[%clk 0:01:18]}  f5 {[%clk 0:00:45]} 27. Bc6 {[%clk 0:01:16]}  Bxc6 {[%clk 0:00:30]} 28. Rxd8+ {[%clk 0:01:15]}  Rxd8 {[%clk 0:00:28]} 29. Qxe6+ {[%clk 0:01:16]}  Kh7 {[%clk 0:00:27]} 30. Qxc6 {[%clk 0:01:15]}  Qb2 {[%clk 0:00:25]} 31. Qb7+ {[%clk 0:01:03]}  Kg8 {[%clk 0:00:24]} 32. Rf1 {[%clk 0:01:01]}  Bb6 {[%clk 0:00:15]} 33. h4 {[%clk 0:00:54]}  Qf6 {[%clk 0:00:10]} 34. b4 {[%clk 0:00:41]}  g5 {[%clk 0:00:10]} 35. c5 {[%clk 0:00:40]}  g4 {[%clk 0:00:11]} 36. cxb6 {[%clk 0:00:39]}  axb6 {[%clk 0:00:10]} 37. Nh2 {[%clk 0:00:36]}  Qxh4 {[%clk 0:00:03]} 38. Qxb6 {[%clk 0:00:35]}  Qg5 {[%clk 0:00:02]} 39. Qe3 {[%clk 0:00:33]}  Qf6 {[%clk 0:00:01]} 40. Re1 {[%clk 0:00:31]}  Kf7 {[%clk 0:00:01]} 41. Nf1 {[%clk 0:00:31]}  h5 {[%clk 0:00:02]} 42. Ng3 {[%clk 0:00:31]}  f4 {[%clk 0:00:02]} 43. Qb3+ {[%clk 0:00:29]}  Kf8 {[%clk 0:00:01]} 44. Nxh5 {[%clk 0:00:28]}  Qh4 {[%clk 0:00:01]} 45. Nxf4 {[%clk 0:00:27]}  g3 {[%clk 0:00:01]} 46. Ng6+ {[%clk 0:00:27]} 1-0


[Site "https://www.chess.com"]

[Event "Titled Tuesday Blitz September 28 2021"]
[White "Wagner, Dennis"]
[Black "Reprintsev, Alexander"]
[WhiteFideId "24650684"]
[BlackFideId "14100541"]
[WhiteElo "2355"]
[BlackElo "2126"]
[Result "1/2-1/2"]
[Round "01"]
[TimeControl "180+1"]
[Date "2021.09.28"]
[WhiteClock "0:00:08"]
[BlackClock "0:01:03"]

1. e4 {[%clk 0:02:44]}  d5 {[%clk 0:02:43]} 2. exd5 {[%clk 0:02:44]}  Qxd5 {[%clk 0:02:43]} 3. Nc3 {[%clk 0:02:44]}  Qa5 {[%clk 0:02:42]} 4. d4 {[%clk 0:02:44]}  Nf6 {[%clk 0:02:42]} 5. Nf3 {[%clk 0:02:44]}  Nc6 {[%clk 0:02:42]} 6. Bb5 {[%clk 0:02:13]}  Ne4 {[%clk 0:02:42]} 7. Bd2 {[%clk 0:01:52]}  Nxc3 {[%clk 0:02:42]} 8. Bxc6+ {[%clk 0:01:52]}  bxc6 {[%clk 0:02:42]} 9. Bxc3 {[%clk 0:01:53]}  Qd5 {[%clk 0:02:42]} 10. O-O {[%clk 0:01:49]}  Bg4 {[%clk 0:02:42]} 11. Re1 {[%clk 0:01:48]}  Bxf3 {[%clk 0:02:42]} 12. Qxf3 {[%clk 0:01:45]}  Qxf3 {[%clk 0:02:42]} 13. gxf3 {[%clk 0:01:46]}  e6 {[%clk 0:02:42]} 14. Re5 {[%clk 0:01:46]}  Kd7 {[%clk 0:02:38]} 15. Ra5 {[%clk 0:01:45]}  a6 {[%clk 0:02:37]} 16. Kg2 {[%clk 0:01:45]}  Bd6 {[%clk 0:02:35]} 17. Re1 {[%clk 0:01:44]}  Rhb8 {[%clk 0:02:34]} 18. b3 {[%clk 0:01:23]}  Rb5 {[%clk 0:02:32]} 19. Ra4 {[%clk 0:01:23]}  Rg5+ {[%clk 0:02:30]} 20. Kf1 {[%clk 0:01:15]}  Rh5 {[%clk 0:02:30]} 21. Re4 {[%clk 0:01:10]}  Rxh2 {[%clk 0:02:29]} 22. Rg4 {[%clk 0:01:11]}  g6 {[%clk 0:02:29]} 23. Rg5 {[%clk 0:01:11]}  f5 {[%clk 0:02:25]} 24. Kg1 {[%clk 0:01:00]}  Rh4 {[%clk 0:02:23]} 25. Rg2 {[%clk 0:00:54]}  c5 {[%clk 0:02:21]} 26. Kf1 {[%clk 0:00:36]}  cxd4 {[%clk 0:02:15]} 27. Rxd4 {[%clk 0:00:34]}  Rxd4 {[%clk 0:02:14]} 28. Bxd4 {[%clk 0:00:35]}  c5 {[%clk 0:02:09]} 29. Be3 {[%clk 0:00:33]}  c4 {[%clk 0:02:07]} 30. Ke2 {[%clk 0:00:33]}  cxb3 {[%clk 0:02:05]} 31. axb3 {[%clk 0:00:32]}  a5 {[%clk 0:02:05]} 32. Rg1 {[%clk 0:00:32]}  a4 {[%clk 0:02:04]} 33. Ra1 {[%clk 0:00:32]}  a3 {[%clk 0:02:04]} 34. Ra2 {[%clk 0:00:31]}  h5 {[%clk 0:02:04]} 35. f4 {[%clk 0:00:31]}  h4 {[%clk 0:02:03]} 36. Kf3 {[%clk 0:00:31]}  Kc6 {[%clk 0:02:01]} 37. Bc1 {[%clk 0:00:19]}  Bb4 {[%clk 0:01:58]} 38. Kg2 {[%clk 0:00:18]}  Kd5 {[%clk 0:01:51]} 39. Kh3 {[%clk 0:00:19]}  Be7 {[%clk 0:01:51]} 40. c3 {[%clk 0:00:16]}  e5 {[%clk 0:01:43]} 41. fxe5 {[%clk 0:00:13]}  g5 {[%clk 0:01:40]} 42. f3 {[%clk 0:00:11]}  Rg8 {[%clk 0:01:34]} 43. Bxa3 {[%clk 0:00:09]}  g4+ {[%clk 0:01:35]} 44. fxg4 {[%clk 0:00:09]}  fxg4+ {[%clk 0:01:35]} 45. Kg2 {[%clk 0:00:08]}  Ra8 {[%clk 0:01:32]} 46. Rd2+ {[%clk 0:00:07]}  Ke6 {[%clk 0:01:32]} 47. Bxe7 {[%clk 0:00:07]}  Kxe7 {[%clk 0:01:32]} 48. b4 {[%clk 0:00:08]}  Ke6 {[%clk 0:01:31]} 49. b5 {[%clk 0:00:08]}  Rc8 {[%clk 0:01:25]} 50. b6 {[%clk 0:00:06]}  Rxc3 {[%clk 0:01:24]} 51. Rb2 {[%clk 0:00:06]}  Rc8 {[%clk 0:01:23]} 52. b7 {[%clk 0:00:07]}  Rb8 {[%clk 0:01:23]} 53. Rb4 {[%clk 0:00:06]}  Kf5 {[%clk 0:01:21]} 54. e6 {[%clk 0:00:06]}  Kxe6 {[%clk 0:01:05]} 55. Rxg4 {[%clk 0:00:06]}  Rxb7 {[%clk 0:01:06]} 56. Rxh4 {[%clk 0:00:07]}  Rf7 {[%clk 0:01:04]} 57. Kg3 {[%clk 0:00:07]}  Rg7+ {[%clk 0:01:03]} 58. Rg4 {[%clk 0:00:08]}  Rxg4+ {[%clk 0:01:03]} 59. Kxg4 {[%clk 0:00:08]} 1/2-1/2


[Site "https://www.chess.com"]

[Event "Titled Tuesday Blitz September 28 2021"]
[White "Yeletsky, Ivan"]
[Black "Leve, Nitai"]
[WhiteFideId "24180327"]
[BlackFideId "2006898"]
[WhiteElo "2344"]
[BlackElo "2144"]
[Result "1-0"]
[Round "01"]
[TimeControl "180+1"]
[Date "2021.09.28"]
[WhiteClock "0:00:55"]
[BlackClock "0:00:13"]

1. e4 {[%clk 0:02:59]}  e6 {[%clk 0:00:35]} 2. d4 {[%clk 0:02:12]}  d5 {[%clk 0:00:34]} 3. e5 {[%clk 0:02:12]}  c5 {[%clk 0:00:34]} 4. c3 {[%clk 0:02:13]}  Qb6 {[%clk 0:00:35]} 5. Nf3 {[%clk 0:02:13]}  Bd7 {[%clk 0:00:35]} 6. a3 {[%clk 0:01:52]}  cxd4 {[%clk 0:00:35]} 7. cxd4 {[%clk 0:01:51]}  Bb5 {[%clk 0:00:35]} 8. Nc3 {[%clk 0:01:38]}  Bxf1 {[%clk 0:00:34]} 9. Kxf1 {[%clk 0:01:38]}  Nh6 {[%clk 0:00:32]} 10. Bxh6 {[%clk 0:01:36]}  gxh6 {[%clk 0:00:32]} 11. b4 {[%clk 0:01:36]}  Bg7 {[%clk 0:00:29]} 12. Na4 {[%clk 0:01:30]}  Qb5+ {[%clk 0:00:29]} 13. Kg1 {[%clk 0:01:30]}  O-O {[%clk 0:00:27]} 14. Nc5 {[%clk 0:01:27]}  b6 {[%clk 0:00:20]} 15. Nd3 {[%clk 0:01:26]}  Nd7 {[%clk 0:00:18]} 16. Nf4 {[%clk 0:01:25]}  Rac8 {[%clk 0:00:15]} 17. h4 {[%clk 0:01:12]}  f6 {[%clk 0:00:15]} 18. Nxe6 {[%clk 0:01:10]}  fxe5 {[%clk 0:00:15]} 19. Nxg7 {[%clk 0:00:56]}  Kxg7 {[%clk 0:00:14]} 20. dxe5 {[%clk 0:00:56]}  Rf5 {[%clk 0:00:13]} 21. Nd4 {[%clk 0:00:55]} 1-0


[Site "https://www.chess.com"]

[Event "Titled Tuesday Blitz September 28 2021"]
[White "Al-Tarboush, Ward"]
[Black "Babazada, Khazar"]
[WhiteFideId "7601450"]
[BlackFideId "13413554"]
[WhiteElo "2319"]
[BlackElo "2315"]
[Result "0-1"]
[Round "02"]
[TimeControl "180+1"]
[Date "2021.09.28"]
[WhiteClock "0:00:01"]
[BlackClock "0:00:29"]

1. d4 {[%clk 0:03:00]}  d5 {[%clk 0:03:00]} 2. Nf3 {[%clk 0:03:00]}  Nf6 {[%clk 0:02:59]} 3. Nc3 {[%clk 0:03:00]}  g6 {[%clk 0:02:59]} 4. Bg5 {[%clk 0:03:00]}  Bg7 {[%clk 0:02:58]} 5. e3 {[%clk 0:03:00]}  O-O {[%clk 0:02:57]} 6. Bd3 {[%clk 0:03:00]}  c5 {[%clk 0:02:57]} 7. O-O {[%clk 0:02:59]}  Nc6 {[%clk 0:02:57]} 8. dxc5 {[%clk 0:02:58]}  Qa5 {[%clk 0:02:56]} 9. Nd2 {[%clk 0:02:47]}  Qxc5 {[%clk 0:02:55]} 10. Nb3 {[%clk 0:02:41]}  Qd6 {[%clk 0:02:55]} 11. Nb5 {[%clk 0:02:36]}  Qd8 {[%clk 0:02:54]} 12. c4 {[%clk 0:02:35]}  a6 {[%clk 0:02:49]} 13. Nc3 {[%clk 0:02:33]}  Bg4 {[%clk 0:02:39]} 14. f3 {[%clk 0:02:31]}  dxc4 {[%clk 0:02:39]} 15. Bxc4 {[%clk 0:02:29]}  Bd7 {[%clk 0:02:40]} 16. Nc5 {[%clk 0:02:27]}  Bc8 {[%clk 0:02:28]} 17. e4 {[%clk 0:02:17]}  Qc7 {[%clk 0:02:20]} 18. Be2 {[%clk 0:01:40]}  b6 {[%clk 0:02:05]} 19. Nd3 {[%clk 0:01:37]}  Be6 {[%clk 0:02:04]} 20. Bf4 {[%clk 0:01:36]}  Qb7 {[%clk 0:01:59]} 21. Kh1 {[%clk 0:01:36]}  Rfd8 {[%clk 0:01:55]} 22. Qe1 {[%clk 0:01:32]}  Nd4 {[%clk 0:01:55]} 23. Rd1 {[%clk 0:01:29]}  Nh5 {[%clk 0:01:51]} 24. Be3 {[%clk 0:01:27]}  Nxe2 {[%clk 0:01:51]} 25. Qxe2 {[%clk 0:01:27]}  Rac8 {[%clk 0:01:47]} 26. Nb4 {[%clk 0:01:25]}  b5 {[%clk 0:01:43]} 27. Rxd8+ {[%clk 0:01:10]}  Rxd8 {[%clk 0:01:41]} 28. Rd1 {[%clk 0:01:09]}  Qc8 {[%clk 0:01:25]} 29. Nbd5 {[%clk 0:01:07]}  Bf8 {[%clk 0:01:22]} 30. Bb6 {[%clk 0:01:06]}  Rd6 {[%clk 0:01:19]} 31. Qe3 {[%clk 0:00:58]}  Nf6 {[%clk 0:01:14]} 32. Bc5 {[%clk 0:00:44]}  Rd7 {[%clk 0:01:06]} 33. b4 {[%clk 0:00:42]}  Qd8 {[%clk 0:01:01]} 34. Nxf6+ {[%clk 0:00:27]}  exf6 {[%clk 0:01:02]} 35. Rxd7 {[%clk 0:00:26]}  Qxd7 {[%clk 0:01:01]} 36. Bxf8 {[%clk 0:00:24]}  Kxf8 {[%clk 0:01:01]} 37. h3 {[%clk 0:00:23]}  Qd6 {[%clk 0:00:55]} 38. a3 {[%clk 0:00:22]}  Kg7 {[%clk 0:00:54]} 39. Kg1 {[%clk 0:00:22]}  h5 {[%clk 0:00:53]} 40. h4 {[%clk 0:00:21]}  Qe5 {[%clk 0:00:52]} 41. Kf2 {[%clk 0:00:19]}  g5 {[%clk 0:00:53]} 42. hxg5 {[%clk 0:00:16]}  fxg5 {[%clk 0:00:53]} 43. Ne2 {[%clk 0:00:16]}  Bc4 {[%clk 0:00:49]} 44. Qd4 {[%clk 0:00:16]}  Qf6 {[%clk 0:00:47]} 45. Qxf6+ {[%clk 0:00:15]}  Kxf6 {[%clk 0:00:48]} 46. Nd4 {[%clk 0:00:13]}  h4 {[%clk 0:00:43]} 47. Nc6 {[%clk 0:00:13]}  Ke6 {[%clk 0:00:38]} 48. Nb8 {[%clk 0:00:12]}  Ke5 {[%clk 0:00:39]} 49. Nc6+ {[%clk 0:00:13]}  Kf4 {[%clk 0:00:36]} 50. Nd4 {[%clk 0:00:07]}  g4 {[%clk 0:00:34]} 51. Nf5 {[%clk 0:00:03]}  g3+ {[%clk 0:00:30]} 52. Ke1 {[%clk 0:00:02]}  h3 {[%clk 0:00:30]} 53. gxh3 {[%clk 0:00:03]}  Kxf3 {[%clk 0:00:28]} 54. Nh4+ {[%clk 0:00:01]}  Kxe4 {[%clk 0:00:28]} 55. Ng2 {[%clk 0:00:01]}  f5 {[%clk 0:00:27]} 56. h4 {[%clk 0:00:01]}  f4 {[%clk 0:00:28]} 57. h5 {[%clk 0:00:01]}  f3 {[%clk 0:00:28]} 58. Nh4 {[%clk 0:00:01]}  f2+ {[%clk 0:00:29]} 59. Kd2 {[%clk 0:00:01]}  f1=Q {[%clk 0:00:29]} 0-1


[Site "https://www.chess.com"]

[Event "Titled Tuesday Blitz September 28 2021"]
[White "Andreikin, Dmitry"]
[Black "Horobetz, Graham"]
[WhiteFideId "4158814"]
[BlackFideId "2047322"]
[WhiteElo "3007"]
[BlackElo "2593"]
[Result "1-0"]
[Round "02"]
[TimeControl "180+1"]
[Date "2021.09.28"]
[WhiteClock "0:02:07"]
[BlackClock "0:00:24"]

1. d4 {[%clk 0:03:00]}  Nf6 {[%clk 0:02:57]} 2. c4 {[%clk 0:03:01]}  e6 {[%clk 0:02:56]} 3. Nf3 {[%clk 0:03:00]}  Bb4+ {[%clk 0:02:56]} 4. Bd2 {[%clk 0:02:59]}  Qe7 {[%clk 0:02:56]} 5. g3 {[%clk 0:02:55]}  Nc6 {[%clk 0:02:54]} 6. a3 {[%clk 0:02:48]}  Bxd2+ {[%clk 0:02:52]} 7. Qxd2 {[%clk 0:02:49]}  d6 {[%clk 0:02:44]} 8. Bg2 {[%clk 0:02:48]}  e5 {[%clk 0:02:40]} 9. d5 {[%clk 0:02:48]}  Nb8 {[%clk 0:02:40]} 10. Nc3 {[%clk 0:02:47]}  a5 {[%clk 0:02:38]} 11. b3 {[%clk 0:02:40]}  O-O {[%clk 0:02:20]} 12. e4 {[%clk 0:02:39]}  Bg4 {[%clk 0:02:03]} 13. Nh4 {[%clk 0:02:37]}  Nfd7 {[%clk 0:01:22]} 14. h3 {[%clk 0:02:22]}  Bh5 {[%clk 0:01:22]} 15. Nf5 {[%clk 0:02:21]}  Qf6 {[%clk 0:01:20]} 16. O-O {[%clk 0:02:20]}  Bg6 {[%clk 0:01:14]} 17. Ne3 {[%clk 0:02:19]}  Nc5 {[%clk 0:00:56]} 18. Rab1 {[%clk 0:02:19]}  a4 {[%clk 0:00:52]} 19. b4 {[%clk 0:02:19]}  Nb3 {[%clk 0:00:52]} 20. Qd1 {[%clk 0:02:19]}  Nd4 {[%clk 0:00:43]} 21. h4 {[%clk 0:02:17]}  h6 {[%clk 0:00:38]} 22. f4 {[%clk 0:02:16]}  exf4 {[%clk 0:00:24]} 23. Ng4 {[%clk 0:02:07]} 1-0


[Site "https://www.chess.com"]